lending/lending_fUSD_20240816
["ID","MTS","AMOUNT","RATE_DAILY","PERIOD"]
[335030235,1723780127343,500.0,0.00024931,60]
[335030236,1723780130246,155.17853723,9.988e-05,2]
[335030237,1723780144683,-550.0,0.0001,2]
[335030238,1723780144711,-2512.56110423,0.0001,2]
[335030249,1723780212254,268.79,9.915e-05,2]
[335030250,1723780224463,2500.0,0.00024931,60]
[335030269,1723780237601,-211.10292658,0.00010009,2]
[335030270,1723780237613,-155.0,0.00010097,2]
[335030271,1723780237622,-872.0,0.00010251,2]
[335030272,1723780237632,-290.3,0.00010336,2]
[335030273,1723780237641,-373.5,0.00010471,2]
[335030274,1723780237650,-692.42581777,0.000105,2]
[335030275,1723780237660,-835.07,0.000106,2]
[335030276,1723780237669,-150.0,0.00010685,2]
[335030277,1723780237679,-2387.09421634,0.00010713,2]
[335030278,1723780237688,-150.0,0.00010757,2]
[335030279,1723780237697,-61.85810869,0.00010784,2]
[335030280,1723780237720,-88.77553211,0.00010784,2]
[335030281,1723780237730,-454.67,0.000108,2]
[335030282,1723780237739,-196.83691993,0.00010837,2]
[335030283,1723780237749,-150.0,0.00010841,2]
[335030284,1723780237758,-2500.0,0.0001085,2]
[335030285,1723780237767,-150.0,0.00010876,2]
[335030286,1723780237777,-150.0,0.00010885,2]
[335030287,1723780237787,-300.0,0.00010885,2]
[335030288,1723780237796,-300.0,0.00010885,2]
[335030289,1723780237806,-215.89361964,0.00010886,2]
[335030290,1723780237816,-415.05274519,0.00010888,2]
[335030291,1723780237826,-874.5562,0.000109,2]
[335030292,1723780237839,-150.0,0.000109,2]
[335030293,1723780237852,-150.0,0.00010906,2]
[335030294,1723780237861,-150.0,0.00010909,2]
[335030295,1723780237871,-3000.0,0.0001094,2]
[335030296,1723780237882,-150.0,0.00010946,2]
[335030297,1723780237892,-453.0,0.00010949,2]
[335030298,1723780237901,-4361.06353823,0.0001095,2]
[335030299,1723780237941,-7310.72,0.0001095,2]
[335030300,1723780237953,-5378.01616488,0.0001095,2]
[335030301,1723780237977,-83054.8223134,0.0001095,2]
[335030302,1723780237988,-85000.0,0.0001095,2]
[335030303,1723780237997,-150.0,0.00010953,2]
[335030304,1723780238007,-250.0,0.00010959,2]
[335030305,1723780238018,-150.0,0.00010968,2]
[335030306,1723780238028,-631.3772493,0.00010995,2]
[335030307,1723780238038,-1970.5038725,0.00010998,2]
[335030308,1723780238049,-154.4064065,0.00010998,2]
[335030309,1723780238059,-7088.8110483,0.00010998,2]
[335030310,1723780238069,-228.9942062,0.00010998,2]
[335030311,1723780238079,-444109.07362442,0.00011,2]
[335030312,1723780238090,-171980.06379735,0.00011,2]
[335030313,1723780238100,-1620908.44332851,0.00011,2]
[335030314,1723780238110,-2000.0,0.00011,2]
[335030315,1723780238120,-576.912,0.00011,2]
[335030316,1723780238130,-926.341,0.00011,2]
[335030317,1723780238140,-1179.364,0.00011,2]
[335030318,1723780238150,-610.968,0.00011,2]
[335030319,1723780238161,-557.344,0.00011,2]
[335030320,1723780238170,-446.0,0.00011,2]
[335030321,1723780238180,-810.0,0.00011,2]
[335030322,1723780238190,-545.81,0.00011,2]
[335030323,1723780238200,-1904.576,0.00011,2]
[335030324,1723780238210,-247.0,0.00011,2]
[335030325,1723780238220,-1175.0,0.00011,2]
[335030326,1723780238229,-1479.462,0.00011,2]
[335030327,1723780238239,-259.359,0.00011,2]
[335030328,1723780238250,-3000.0,0.00011,2]
[335030329,1723780238259,-3000.0,0.00011,2]
[335030330,1723780238269,-247.22420881,0.00011,2]
[335030331,1723780238279,-737.655658,0.00011003,2]
[335030332,1723780238289,-3000.0,0.0001101,2]
[335030333,1723780238298,-154403.0,0.00011014,2]
[335030334,1723780238309,-3000.0,0.000111,2]
[335030335,1723780238319,-268.79,0.00011155,2]
[335030336,1723780238328,-3000.0,0.0001117,2]
[335030337,1723780238338,-416.81842899,0.00011273,2]
[335030338,1723780238348,-386.63177506,0.00011412,2]
[335030339,1723780238358,-717.0,0.000115,2]
[335030340,1723780238368,-1000.0,0.000115,2]
[335030341,1723780238712,-906.0,0.000115,2]
[335030342,1723780238724,-872.0,0.00011533,2]
[335030343,1723780238734,-160.0,0.00011557,2]
[335030344,1723780238744,-712.92,0.00011916,2]
[335030345,1723780238754,-356.66,0.00011916,2]
[335030346,1723780238763,-255.0,0.00011935,2]
[335030347,1723780238773,-420.0,0.00011963,2]
[335030348,1723780238782,-261.0,0.00011974,2]
[335030349,1723780238792,-158.30019841,0.00011999,2]
[335030350,1723780238802,-5000.0,0.00012,2]
[335030351,1723780238811,-306.26080256,0.00012,2]
[335030352,1723780238822,-600.0,0.00012,2]
[335030353,1723780238832,-426.55,0.00012,2]
[335030354,1723780238845,-300.0,0.00012,2]
[335030355,1723780238856,-150.0,0.00012,2]
[335030356,1723780238866,-150.0,0.00012,2]
[335030357,1723780238877,-150.0,0.00012,2]
[335030358,1723780238888,-356.55,0.00012,2]
[335030359,1723780238898,-300.0,0.00012,2]
[335030360,1723780238908,-531.19,0.00012,2]
[335030361,1723780238920,-182.86,0.00012335,2]
[335030362,1723780238930,-268.79,0.00012394,2]
[335030363,1723780238940,-289.96330034,0.000125,2]
[335030364,1723780238950,-3113.55308366,0.0001251,2]
[335030365,1723780238960,-373.5,0.00012723,2]
[335030366,1723780238971,-872.0,0.00012814,2]
[335030367,1723780238981,-150.0,0.00012867,2]
[335030368,1723780238990,-300.69,0.00012867,2]
[335030369,1723780239000,-150.0,0.00012867,2]
[335030370,1723780239011,-150.0,0.00012867,2]
[335030371,1723780239021,-20240.62030542,0.00013,2]
[335030372,1723780239030,-5043.54170453,0.0001305,2]
[335030373,1723780239040,-433.0,0.00013069,2]
[335030374,1723780239050,-1392.16748192,0.00013078,2]
[335030375,1723780239059,-587.0,0.00013147,2]
[335030376,1723780239069,-160.0,0.00013208,2]
[335030377,1723780239078,-1000.0,0.000135,2]
[335030378,1723780239088,-268.79,0.00013633,2]
[335030379,1723780239098,-546.9938583,0.00013698,2]
[335030380,1723780239107,-546.9938583,0.00013698,2]
[335030381,1723780239117,-200.0,0.00013699,2]
[335030382,1723780239127,-500.0,0.00013699,2]
[335030383,1723780239137,-209.5,0.00013699,2]
[335030384,1723780239147,-2751.0,0.00013699,2]
[335030385,1723780239156,-1305.23,0.00013699,2]
[335030386,1723780239168,-3459.43,0.00013699,2]
[335030387,1723780239178,-23374.34,0.00013699,2]
[335030388,1723780239188,-2750.56,0.00013699,2]
[335030389,1723780239197,-200.16404899,0.00013773,2]
[335030390,1723780239207,-200.0,0.00013773,2]
[335030391,1723780239216,-400851.040821,0.000138,2]
[335030392,1723780239226,-526.83395276,0.00013851,2]
[335030393,1723780239235,-232.71,0.00013866,2]
[335030394,1723780239245,-348.26413265,0.0001387,2]
[335030395,1723780239255,-150.0,0.00013873,2]
[335030396,1723780239264,-200.0,0.00013873,2]
[335030397,1723780239275,-200.0,0.00013873,2]
[335030398,1723780239285,-421276.716548,0.000139,2]
[335030399,1723780239295,-319.0,0.00013973,2]
[335030400,1723780239304,-152.69,0.00013973,2]
[335030401,1723780239313,-158.76,0.00013973,2]
[335030402,1723780239323,-153.69,0.00013973,2]
[335030403,1723780239332,-189.77,0.00013973,2]
[335030404,1723780239341,-149357.475,0.0001399,2]
[335030405,1723780239352,-29916.58290647,0.00014,4]
[335030406,1723780239361,-1000.0,0.00014,3]
[335030407,1723780239370,-151.0,0.00014,2]
[335030408,1723780239380,-650.0,0.00014,2]
[335030409,1723780239389,-216.754,0.00014,2]
[335030410,1723780239399,-249.622,0.00014,2]
[335030411,1723780239410,-1895.0,0.00014,2]
[335030412,1723780239421,-247.0,0.00014,2]
[335030413,1723780239438,-1169.256,0.00014,2]
[335030414,1723780239447,-274.51144531,0.00014,5]
[335030415,1723780239456,-872.0,0.00014096,2]
[335030416,1723780239467,-523.08333089,0.00014235,2]
[335030417,1723780239477,-318.0,0.00014312,2]
[335030418,1723780239487,-213.5219145,0.00014421,2]
[335030419,1723780239498,-823.0,0.00014449,2]
[335030420,1723780239508,-2094.698002,0.00014521,2]
[335030421,1723780239517,-155.0,0.00014681,2]
[335030422,1723780239527,-316.86944542,0.00014753,2]
[335030423,1723780239538,-700.0,0.0001478,2]
[335030424,1723780239549,-900.0,0.0001478,2]
[335030425,1723780239559,-500.0,0.0001478,2]
[335030426,1723780239569,-182.86,0.00014802,2]
[335030427,1723780239580,-160.0,0.00014859,2]
[335030428,1723780239590,-268.79,0.00014873,2]
[335030429,1723780239601,-373.5,0.00014974,2]
[335030430,1723780239611,-9847.5339515,0.00014998,2]
[335030431,1723780239622,-4302.2740378,0.00014998,2]
[335030432,1723780239632,-1931.31429742,0.00015,2]
[335030433,1723780239641,-155.07710398,0.00015,2]
[335030434,1723780239651,-9778.95781531,0.00015,2]
[335030435,1723780239668,-691.05229577,0.00015,10]
[335030436,1723780239677,-676.56219276,0.00015,2]
[335030437,1723780239687,-495.0,0.00015,2]
[335030438,1723780239696,-1000.0,0.00015,4]
[335030439,1723780239706,-990.05544266,0.00015,2]
[335030440,1723780239715,-242.47273525,0.00015,2]
[335030441,1723780239725,-1198.88411859,0.00015,2]
[335030442,1723780239734,-268.28503577,0.00015,14]
[335030443,1723780239744,-4982.0,0.00015,2]
[335030444,1723780239754,-956.0,0.00015,2]
[335030445,1723780239763,-426.65418503,0.00015,2]
[335030446,1723780239772,-150.0,0.00015,2]
[335030447,1723780239782,-150.0,0.00015,2]
[335030448,1723780239792,-150.0,0.00015,2]
[335030449,1723780239802,-169.45601098,0.00015,2]
[335030450,1723780239812,-272.40274662,0.00015,2]
[335030451,1723780239821,-150.0,0.00015,2]
[335030452,1723780239831,-150.0,0.00015,2]
[335030453,1723780239842,-252.9089,0.00015,2]
[335030454,1723780239852,-150.0,0.00015,2]
[335030455,1723780239861,-150.0,0.00015,2]
[335030456,1723780239870,-150.0,0.00015,2]
[335030457,1723780239880,-162.07648554,0.00015,2]
[335030458,1723780239889,-150.0,0.00015,2]
[335030459,1723780239898,-150.0,0.00015,2]
[335030460,1723780239910,-507.796885,0.00015,2]
[335030461,1723780239920,-300.0,0.00015068,2]
[335030462,1723780239940,-426.65418503,0.00015096,2]
[335030463,1723780239949,-169.45601098,0.00015096,2]
[335030464,1723780239959,-150.0,0.00015103,2]
[335030465,1723780239968,-400.71564823,0.00015142,2]
[335030466,1723780239977,-426.65418503,0.00015192,2]
[335030467,1723780239986,-169.45601098,0.00015192,2]
[335030468,1723780239995,-150.0,0.00015207,2]
[335030469,1723780240004,-400.0,0.00015242,2]
[335030470,1723780240013,-200.64893025,0.00015242,2]
[335030471,1723780240022,-426.65418503,0.00015288,2]
[335030472,1723780240032,-169.45601098,0.00015288,2]
[335030473,1723780240041,-150.0,0.0001531,2]
[335030474,1723780240051,-150.0,0.00015317,2]
[335030475,1723780240060,-2094.698002,0.00015342,2]
[335030476,1723780240070,-872.0,0.00015377,2]
[335030477,1723780240079,-426.65418503,0.00015384,2]
[335030478,1723780240089,-169.45601098,0.00015384,2]
[335030479,1723780240099,-1572.31690513,0.000154,2]
[335030480,1723780240109,-150.0,0.00015413,2]
[335030481,1723780240119,-426.65418503,0.0001548,2]
[335030482,1723780240128,-169.45601098,0.0001548,2]
[335030483,1723780240138,-150.0,0.00015516,2]
[335030484,1723780240147,-426.65418503,0.00015576,2]
[335030485,1723780240158,-169.45601098,0.00015576,2]
[335030486,1723780240169,-150.0,0.0001562,2]
[335030487,1723780240178,-150.0,0.00015633,2]
[335030488,1723780240188,-426.65418503,0.00015672,2]
[335030489,1723780240197,-169.45601098,0.00015672,2]
[335030490,1723780240206,-150.0,0.00015723,2]
[335030491,1723780240215,-426.65418503,0.00015768,2]
[335030492,1723780240224,-169.45601098,0.00015768,2]
[335030493,1723780240233,-150.0,0.00015792,2]
[335030494,1723780240243,-150.0,0.00015826,2]
[335030495,1723780240252,-166.69,0.00015831,2]
[335030496,1723780240261,-168.52,0.00015831,2]
[335030497,1723780240271,-426.65418503,0.00015864,2]
[335030498,1723780240280,-169.45601098,0.00015864,2]
[335030499,1723780240289,-1152.0,0.0001588,2]
[335030500,1723780240298,-150.0,0.00015929,2]
[335030501,1723780240307,-150.0,0.0001595,2]
[335030502,1723780240316,-426.65418503,0.0001596,2]
[335030503,1723780240325,-169.45601098,0.0001596,2]
[335030504,1723780240335,-700.0,0.00016,2]
[335030505,1723780240344,-150.0,0.00016033,2]
[335030506,1723780240353,-426.65418503,0.00016056,2]
[335030507,1723780240363,-169.45601098,0.00016056,2]
[335030508,1723780240372,-150.0,0.00016056,2]
[335030509,1723780240381,-150.0,0.00016136,2]
[335030510,1723780240390,-700.0,0.0001615,2]
[335030511,1723780240399,-900.0,0.0001615,2]
[335030512,1723780240410,-426.65418503,0.00016152,2]
[335030513,1723780240419,-169.45601098,0.00016152,2]
[335030514,1723780240429,-2094.698002,0.00016164,2]
[335030515,1723780240438,-262.6368,0.00016181,2]
[335030516,1723780240447,-150.0,0.00016239,2]
[335030517,1723780240456,-426.65418503,0.00016247,2]
[335030518,1723780240465,-169.45601098,0.00016247,2]
[335030519,1723780240474,-150.0,0.00016267,2]
[335030520,1723780240483,-9715.6905372,0.00016281,7]
[335030521,1723780240493,-45418.5871832,0.00016281,7]
[335030522,1723780240502,-421.13,0.00016341,2]
[335030523,1723780240511,-835.5,0.00016341,2]
[335030524,1723780240520,-150.0,0.00016342,2]
[335030525,1723780240529,-426.65418503,0.00016343,2]
[335030526,1723780240538,-169.45601098,0.00016343,2]
[335030527,1723780240548,-300.0,0.00016438,2]
[335030528,1723780240557,-426.65418503,0.00016439,2]
[335030529,1723780240566,-169.45601098,0.00016439,2]
[335030530,1723780240575,-150.0,0.00016446,2]
[335030531,1723780240585,-1764.72554699,0.000165,2]
[335030532,1723780240594,-426.65418503,0.00016535,2]
[335030533,1723780240604,-169.45601098,0.00016535,2]
[335030534,1723780240613,-150.0,0.00016549,2]
[335030535,1723780240623,-152.0,0.00016577,3]
[335030536,1723780240631,-150.0,0.00016583,2]
[335030537,1723780240641,-150.0,0.00016583,2]
[335030538,1723780240650,-426.65418503,0.00016631,2]
[335030539,1723780240662,-169.45601098,0.00016631,2]
[335030540,1723780240671,-150.0,0.00016652,2]
[335030541,1723780240680,-426.65418503,0.00016727,2]
[335030542,1723780240689,-169.45601098,0.00016727,2]
[335030543,1723780240698,-150.0,0.00016755,2]
[335030544,1723780240707,-842.37,0.00016795,2]
[335030545,1723780240717,-426.65418503,0.00016823,2]
[335030546,1723780240726,-169.45601098,0.00016823,2]
[335030547,1723780240736,-150.0,0.00016859,2]
[335030548,1723780240745,-150.0,0.000169,2]
[335030549,1723780240755,-150.0,0.000169,2]
[335030550,1723780240764,-426.65418503,0.00016919,2]
[335030551,1723780240774,-169.45601098,0.00016919,2]
[335030552,1723780240783,-150.0,0.00016962,2]
[335030553,1723780240794,-1700.0,0.00016972,2]
[335030554,1723780240803,-2000.0,0.00016972,2]
[335030555,1723780240813,-2094.698002,0.00016986,2]
[335030556,1723780240823,-1000.0,0.00017,6]
[335030557,1723780240832,-152.968,0.00017,2]
[335030558,1723780240846,-426.65418503,0.00017015,2]
[335030559,1723780240855,-169.45601098,0.00017015,2]
[335030560,1723780240865,-150.0,0.00017065,2]
[335030561,1723780240874,-426.65418503,0.00017111,2]
[335030562,1723780240885,-169.45601098,0.00017111,2]
[335030563,1723780240895,-150.0,0.00017111,2]
[335030564,1723780240905,-150.0,0.00017168,2]
[335030565,1723780240919,-426.65418503,0.00017207,2]
[335030566,1723780240928,-169.45601098,0.00017207,2]
[335030567,1723780240938,-150.0,0.00017217,2]
[335030568,1723780240948,-373.5,0.00017226,2]
[335030569,1723780240958,-600.0,0.00017246,2]
[335030570,1723780240968,-150.0,0.00017272,2]
[335030571,1723780240977,-426.65418503,0.00017303,2]
[335030572,1723780240987,-169.45601098,0.00017303,2]
[335030573,1723780240997,-150.0,0.00017375,2]
[335030574,1723780241006,-150.0,0.00017375,2]
[335030575,1723780241016,-426.65418503,0.00017399,2]
[335030576,1723780241026,-169.45601098,0.00017399,2]
[335030577,1723780241036,-1613.0,0.00017452,2]
[335030578,1723780241046,-150.0,0.00017478,2]
[335030579,1723780241055,-5158.43956049,0.0001748,7]
[335030580,1723780241065,-426.65418503,0.00017495,2]
[335030581,1723780241077,-169.45601098,0.00017495,2]
[335030582,1723780241087,-700.0,0.0001752,2]
[335030583,1723780241096,-500.0,0.0001752,2]
[335030584,1723780241106,-900.0,0.0001752,2]
[335030585,1723780241116,-150.0,0.00017533,2]
[335030586,1723780241125,-209.5,0.00017534,2]
[335030587,1723780241137,-150.0,0.00017582,2]
[335030588,1723780241147,-426.65418503,0.00017591,2]
[335030589,1723780241156,-169.45601098,0.00017591,2]
[335030590,1723780241166,-150.0,0.00017685,2]
[335030591,1723780241175,-426.65418503,0.00017687,2]
[335030592,1723780241185,-169.45601098,0.00017687,2]
[335030593,1723780241195,-152.0,0.00017743,4]
[335030594,1723780241205,-150.76,0.00017753,2]
[335030595,1723780241214,-426.65418503,0.00017783,2]
[335030596,1723780241224,-169.45601098,0.00017783,2]
[335030597,1723780241233,-150.0,0.00017788,2]
[335030598,1723780241243,-2094.698002,0.00017808,2]
[335030599,1723780241252,-150.0,0.0001785,2]
[335030600,1723780241262,-426.65418503,0.00017879,2]
[335030601,1723780241271,-169.45601098,0.00017879,2]
[335030602,1723780241280,-150.0,0.00017891,2]
[335030603,1723780241290,-426.65418503,0.00017975,2]
[335030604,1723780241299,-169.45601098,0.00017975,2]
[335030605,1723780241308,-150.0,0.00017995,2]
[335030606,1723780241318,-1600.0,0.00018,12]
[335030607,1723780241327,-1168.11097552,0.00018,10]
[335030608,1723780241338,-750.0,0.00018,2]
[335030609,1723780241347,-500.0,0.00018065,2]
[335030610,1723780241358,-1700.0,0.00018068,2]
[335030611,1723780241368,-2000.0,0.00018068,2]
[335030612,1723780241377,-426.65418503,0.00018071,2]
[335030613,1723780241386,-169.45601098,0.00018071,2]
[335030614,1723780241396,-150.0,0.00018098,2]
[335030615,1723780241406,-500.0,0.00018166,2]
[335030616,1723780241416,-426.65418503,0.00018167,2]
[335030617,1723780241426,-169.45601098,0.00018167,2]
[335030618,1723780241435,-150.0,0.00018167,2]
[335030619,1723780241445,-150.0,0.00018167,2]
[335030620,1723780241455,-150.0,0.00018167,2]
[335030621,1723780241464,-150.0,0.00018201,2]
[335030622,1723780241473,-426.65418503,0.00018263,2]
[335030623,1723780241483,-169.45601098,0.00018263,2]
[335030624,1723780241492,-500.0,0.00018266,2]
[335030625,1723780241501,-500.0,0.00018295,2]
[335030626,1723780241511,-150.0,0.00018304,2]
[335030627,1723780241520,-800.0,0.00018358,2]
[335030628,1723780241529,-426.65418503,0.00018359,2]
[335030629,1723780241538,-169.45601098,0.00018359,2]
[335030630,1723780241548,-500.0,0.00018375,2]
[335030631,1723780241557,-150.0,0.00018408,2]
[335030632,1723780241567,-500.0,0.00018426,2]
[335030633,1723780241576,-166.69,0.00018444,2]
[335030634,1723780241586,-426.65418503,0.00018455,2]
[335030635,1723780241598,-169.45601098,0.00018455,2]
[335030636,1723780241611,-150.0,0.00018483,2]
[335030637,1723780241624,-150.0,0.00018511,2]
[335030638,1723780241635,-426.65418503,0.00018551,2]
[335030639,1723780241648,-169.45601098,0.00018551,2]
[335030640,1723780241661,-267.34,0.00018575,2]
[335030641,1723780241674,-300.96,0.00018575,2]
[335030642,1723780241686,-531.19,0.00018575,2]
[335030643,1723780241700,-300.63,0.00018575,2]
[335030644,1723780241714,-531.19,0.00018575,2]
[335030645,1723780241728,-300.0,0.00018575,2]
[335030646,1723780241741,-531.19,0.00018575,2]
[335030647,1723780241754,-500.0,0.00018594,2]
[335030648,1723780241767,-2533.93722692,0.000186,2]
[335030649,1723780241780,-150.0,0.00018614,2]
[335030650,1723780241794,-700.0,0.00018616,2]
[335030651,1723780241807,-900.0,0.00018616,2]
[335030652,1723780241820,-2094.698002,0.0001863,2]
[335030653,1723780241830,-426.65418503,0.00018646,2]
[335030654,1723780241845,-169.45601098,0.00018646,2]
[335030655,1723780241858,-504.50844191,0.00018647,2]
[335030656,1723780241871,-150.0,0.00018717,2]
[335030657,1723780241884,-161.13753315,0.00018733,2]
[335030658,1723780241897,-426.65418503,0.00018742,2]
[335030659,1723780241911,-169.45601098,0.00018742,2]
[335030660,1723780241925,-150.0,0.000188,2]
[335030661,1723780241939,-150.0,0.000188,2]
[335030662,1723780241951,-150.0,0.00018821,2]
[335030663,1723780241962,-426.65418503,0.00018838,2]
[335030664,1723780241972,-169.45601098,0.00018838,2]
[335030665,1723780241985,-152.0,0.00018908,5]
[335030666,1723780241998,-150.0,0.00018924,2]
[335030667,1723780242011,-426.65418503,0.00018934,2]
[335030668,1723780242021,-169.45601098,0.00018934,2]
[335030669,1723780242035,-150.0,0.00018958,2]
[335030670,1723780242047,-647.16182356,0.00019,2]
[335030671,1723780242061,-155.82819969,0.00019,2]
[335030672,1723780242072,-45840.50843857,0.00019,2]
[335030689,1723780243211,-11063.84130079,0.00019,2]
[335030690,1723780243222,-150.0,0.00019027,2]
[335030691,1723780243233,-426.65418503,0.0001903,2]
[335030692,1723780243244,-169.45601098,0.0001903,2]
[335030693,1723780243256,-800.0,0.00019109,2]
[335030694,1723780243267,-150.0,0.00019117,2]
[335030695,1723780243278,-426.65418503,0.00019126,2]
[335030696,1723780243288,-169.45601098,0.00019126,2]
[335030697,1723780243298,-150.0,0.0001913,2]
[335030698,1723780243309,-1700.0,0.00019164,2]
[335030699,1723780243320,-2000.0,0.00019164,2]
[335030700,1723780243330,-855.1,0.00019178,2]
[335030701,1723780243341,-2258.0,0.0001918,2]
[335030702,1723780243351,-501.32573439,0.00019201,2]
[335030703,1723780243361,-426.65418503,0.00019222,4]
[335030704,1723780243372,-169.45601098,0.00019222,4]
[335030705,1723780243383,-150.0,0.00019222,4]
[335030706,1723780243393,-150.0,0.00019234,4]
[335030707,1723780243404,-500.0,0.00019272,2]
[335030708,1723780243416,-800.0,0.0001931,2]
[335030709,1723780243426,-426.65418503,0.00019318,4]
[335030710,1723780243437,-169.45601098,0.00019318,4]
[335030711,1723780243448,-150.0,0.00019337,4]
[335030712,1723780243459,-150.0,0.00019355,2]
[335030713,1723780243470,-426.65418503,0.00019414,4]
[335030714,1723780243481,-169.45601098,0.00019414,4]
[335030715,1723780243491,-150.0,0.00019433,4]
[335030716,1723780243502,-150.0,0.0001944,4]
[335030717,1723780243512,-373.5,0.00019478,2]
[335030718,1723780243523,-500.0,0.00019504,2]
[335030719,1723780243534,-426.65418503,0.0001951,4]
[335030720,1723780243545,-169.45601098,0.0001951,4]
[335030721,1723780243555,-150.0,0.00019543,4]
[335030722,1723780243566,-658.95822794,0.00019565,2]
[335030723,1723780243577,-800.0,0.00019566,2]
[335030724,1723780243587,-800.0,0.00019587,2]
[335030725,1723780243598,-426.65418503,0.00019606,4]
[335030726,1723780243608,-169.45601098,0.00019606,4]
[335030727,1723780243619,-150.0,0.00019647,4]
[335030728,1723780243630,-500.0,0.00019662,2]
[335030729,1723780243641,-500.0,0.00019666,2]
[335030730,1723780243652,-426.65418503,0.00019702,4]
[335030731,1723780243663,-169.45601098,0.00019702,4]
[335030732,1723780243673,-500.0,0.00019712,2]
[335030733,1723780243684,-150.0,0.0001975,4]
[335030734,1723780243695,-150.0,0.0001975,4]
[335030735,1723780243706,-150.0,0.0001975,4]
[335030736,1723780243717,-150.0,0.0001975,4]
[335030737,1723780243728,-150.0,0.0001975,4]
[335030738,1723780243740,-150.0,0.0001975,4]
[335030739,1723780243752,-426.65418503,0.00019798,4]
[335030740,1723780243763,-169.45601098,0.00019798,4]
[335030741,1723780243774,-800.0,0.00019819,2]
[335030742,1723780243786,-500.0,0.00019846,2]
[335030743,1723780243797,-150.0,0.00019853,4]
[335030744,1723780243809,-800.0,0.00019865,2]
[335030745,1723780243820,-500.0,0.00019878,2]
[335030746,1723780243831,-426.65418503,0.00019894,4]
[335030747,1723780243847,-169.45601098,0.00019894,4]
[335030748,1723780243858,-150.0,0.00019957,4]
[335030749,1723780243869,-426.65418503,0.0001999,4]
[335030750,1723780243883,-169.45601098,0.0001999,4]
[335030751,1723780243894,-9515.18640225,0.0002,7]
[335030752,1723780243906,-2996.0,0.0002,2]
[335030753,1723780243920,-193.0,0.0002,2]
[335030754,1723780243932,-2500.0,0.0002,2]
[335030755,1723780243943,-2500.0,0.0002,2]
[335030756,1723780243954,-2500.0,0.0002,2]
[335030757,1723780243964,-2500.0,0.0002,2]
[335030758,1723780243975,-1500.0,0.0002,2]
[335030759,1723780243986,-1000.0,0.0002,10]
[335030760,1723780244508,-5000.0,0.0002,7]
[335030761,1723780244527,-5500.0,0.0002,7]
[335030762,1723780244540,-1800.0,0.0002,14]
[335030763,1723780244550,-991.0,0.0002,2]
[335030764,1723780244559,-991.0,0.0002,2]
[335030765,1723780244568,-19532.41166746,0.0002,2]
[335030766,1723780244578,-19950.0,0.0002,5]
[335030767,1723780244587,-500.0,0.0002,2]
[335030768,1723780244596,-200.0,0.0002,7]
[335030769,1723780244605,-188.0,0.0002,2]
[335030770,1723780244615,-151.0,0.0002,2]
[335030771,1723780244624,-800.0,0.0002,2]
[335030772,1723780244633,-150.0,0.0002,2]
[335030773,1723780244642,-275.695675,0.0002,2]
[335030774,1723780244651,-300.0,0.0002,5]
[335030775,1723780244660,-320.0,0.0002,5]
[335030776,1723780244670,-150.0,0.0002006,4]
[335030777,1723780244679,-266.0,0.0002006,3]
[335030778,1723780244688,-150.0,0.00020067,4]